bitfinex/quotes_BTCUSD_20251010
["timestamp","ask_amount","ask_price","bid_price","bid_amount"]
[1760129710957,0.00015147,115720.0,115670.0,0.05064]
[1760129711184,0.00015147,115720.0,115670.0,0.73951908]
[1760129711408,0.00015147,115720.0,115670.0,0.02039]
[1760129711629,0.17289073,115680.0,115610.0,0.06619503]
[1760129711849,0.18153526,115680.0,115610.0,0.17299262]
[1760129712126,0.54462945,115670.0,115610.0,0.68887908]
[1760129712343,0.3714,115690.0,115630.0,0.18161088]
[1760129712573,0.25602138,115700.0,115630.0,0.18161088]
[1760129712574,0.37132,115700.0,115650.0,0.18157798]
[1760129712786,0.43751503,115700.0,115650.0,0.00015156]
[1760129713010,0.17289082,115680.0,115650.0,0.00015156]
[1760129713224,0.17290623,115670.0,115650.0,0.00015156]
[1760129713463,0.17290741,115670.0,115650.0,0.00015156]
[1760129713707,0.26964062,115660.0,115650.0,0.00015156]
[1760129713906,0.16792062,115660.0,115650.0,0.00015156]
[1760129714126,0.71812062,115660.0,115650.0,0.00015156]
[1760129714335,0.00864827,115630.0,115570.0,0.00987]
[1760129714578,0.37004,115620.0,115570.0,0.19208344]
[1760129714807,0.37004,115620.0,115570.0,0.00050602]
[1760129714808,1.19233566,115610.0,115570.0,0.00050602]
[1760129715039,0.88809651,115600.0,115570.0,0.00050602]
[1760129715255,0.04622,115580.0,115570.0,0.00050602]
[1760129715481,0.18175122,115550.0,115500.0,0.08658503]
[1760129715704,0.36976,115540.0,115500.0,0.88964781]
[1760129715944,0.26977734,115570.0,115500.0,0.85873781]
[1760129716159,0.09672,115540.0,115510.0,0.08312206]
[1760129716400,0.27847561,115540.0,115510.0,0.08312206]
[1760129716617,0.539446,115510.0,115500.0,0.00015164]
[1760129716836,0.17318439,115490.0,115430.0,0.87485191]
[1760129717053,0.2698953,115500.0,115430.0,0.35974008]
[1760129717287,0.17319253,115480.0,115430.0,0.14247503]
[1760129717508,0.1818849,115460.0,115430.0,0.14247503]
[1760129717740,0.15220795,115440.0,115430.0,0.14247503]
[1760129718199,0.24892795,115440.0,115430.0,0.14247503]
[1760129718438,0.36856,115440.0,115430.0,0.14247503]
[1760129718657,0.31358523,115480.0,115440.0,0.17325016]
[1760129718875,0.01358523,115480.0,115470.0,0.08312206]
[1760129719094,0.36832,115490.0,115470.0,0.08312206]
[1760129719314,0.01358178,115480.0,115470.0,0.08312206]
[1760129719748,0.36832,115490.0,115470.0,0.08312206]
[1760129719997,0.09672,115480.0,115470.0,0.08312206]
[1760129720218,0.09672,115480.0,115470.0,0.08327371]
[1760129720439,0.636166,115480.0,115470.0,0.08327371]
[1760129720648,0.46412,115480.0,115470.0,0.08327371]
[1760129720874,0.63731016,115480.0,115470.0,0.08327371]
[1760129721317,0.04622,115490.0,115470.0,0.08327371]
[1760129721558,0.04622,115490.0,115480.0,0.08312206]
[1760129721770,0.53965516,115490.0,115480.0,0.08312206]
[1760129721999,1.31193406,115490.0,115480.0,0.08312206]
[1760129722227,1.95934813,115480.0,115470.0,0.00015165]
[1760129722471,0.51325017,115440.0,115430.0,0.08574283]
[1760129722719,1.97909324,115440.0,115430.0,0.03102174]
[1760129722943,2.69784422,115440.0,115430.0,0.03102174]
[1760129723159,1.89545324,115440.0,115430.0,0.03102174]
[1760129723383,1.042127,115440.0,115430.0,0.03102174]
[1760129723593,0.702127,115440.0,115430.0,0.03102174]
[1760129723987,0.402127,115450.0,115430.0,0.03102174]
[1760129723993,0.36532,115440.0,115430.0,0.03102174]
[1760129724196,1.28069717,115440.0,115430.0,0.03102174]
[1760129724456,1.58069717,115440.0,115430.0,0.03102174]
[1760129724667,1.22896732,115440.0,115430.0,0.03102174]
[1760129724867,1.05571715,115440.0,115430.0,0.03102174]
[1760129725082,1.71012732,115440.0,115430.0,0.02702174]
[1760129725288,2.01012732,115440.0,115430.0,0.02702174]
[1760129725524,0.92896732,115440.0,115430.0,0.02702174]
[1760129725727,1.27989717,115440.0,115430.0,0.02702174]
[1760129726520,0.00866025,115470.0,115430.0,0.02702174]
[1760129726765,0.3636,115460.0,115430.0,0.02702174]
[1760129726893,0.402127,115450.0,115430.0,0.02702174]
[1760129727095,0.402127,115470.0,115430.0,0.02702174]
[1760129727332,0.53655619,115450.0,115430.0,0.02702174]
[1760129727535,1.21537717,115440.0,115430.0,0.02702174]
[1760129727741,0.3,115460.0,115430.0,0.02702174]
[1760129727944,0.36288,115460.0,115430.0,0.20894466]
[1760129728139,0.35376669,115500.0,115450.0,0.17322989]
[1760129728376,0.402127,115480.0,115430.0,0.02702174]
[1760129728602,0.41078725,115470.0,115430.0,0.02702174]
[1760129728832,0.402127,115450.0,115430.0,0.02702174]
[1760129729056,0.402127,115470.0,115430.0,0.02702174]
[1760129729279,0.3783099,115470.0,115430.0,0.11974174]
[1760129729494,0.58400963,115460.0,115430.0,0.02702174]
[1760129729718,0.58955212,115490.0,115430.0,0.20028677]
[1760129729719,0.6,115490.0,115430.0,0.20028677]
[1760129729945,0.01558964,115490.0,115460.0,0.1818806]
[1760129730185,0.01558964,115490.0,115470.0,0.09272]
[1760129730409,0.0155938,115490.0,115470.0,0.10138025]
[1760129730630,0.402127,115520.0,115480.0,0.09272]
[1760129730631,0.01358287,115520.0,115480.0,0.09272]
[1760129730857,0.02917858,115520.0,115490.0,0.14003]
[1760129731083,0.02917858,115520.0,115470.0,0.5444241]
[1760129731298,0.01559571,115520.0,115500.0,0.09272]
[1760129731548,0.18888023,115520.0,115470.0,0.09272]
[1760129731797,0.41078575,115490.0,115430.0,0.11923954]
[1760129732027,0.18880185,115490.0,115440.0,0.09272]
[1760129732299,0.17316142,115500.0,115450.0,0.14003]
[1760129732537,0.17318601,115490.0,115450.0,0.14003]
[1760129732794,0.19743453,115490.0,115420.0,0.09830457]
[1760129732998,0.17321086,115470.0,115420.0,0.00195764]
[1760129733233,0.18187111,115470.0,115420.0,0.00195764]
[1760129733464,0.17321086,115470.0,115420.0,0.00195764]
[1760129733693,0.18190273,115450.0,115420.0,0.00195764]
[1760129733920,0.17322085,115460.0,115420.0,0.00195764]
[1760129734176,0.17323632,115450.0,115420.0,0.00245984]
[1760129734397,0.94464877,115460.0,115420.0,0.00245984]
[1760129734619,0.54252177,115460.0,115420.0,0.00245984]
[1760129735091,0.18190474,115450.0,115420.0,0.00245984]
[1760129735629,0.59202177,115460.0,115420.0,0.00245984]
[1760129735866,0.59202177,115460.0,115420.0,0.09517984]
[1760129735867,0.1818814,115460.0,115420.0,0.09517984]
[1760129736101,0.35936,115450.0,115420.0,0.09517984]
[1760129736340,0.57539218,115430.0,115420.0,0.00245984]
[1760129736568,0.17326518,115430.0,115420.0,0.00245984]
[1760129737031,0.18189957,115450.0,115420.0,0.00245984]
[1760129737261,0.36738175,115450.0,115420.0,0.00245984]
[1760129737478,0.54061741,115450.0,115420.0,0.00245984]
[1760129737933,0.17322047,115460.0,115430.0,0.09272]
[1760129737934,0.18188156,115460.0,115430.0,0.09272]
[1760129738173,0.1818998,115450.0,115420.0,0.00245984]
[1760129738411,0.402127,115450.0,115420.0,0.00245984]
[1760129738631,0.53996156,115460.0,115420.0,0.09517984]
[1760129738857,0.18189722,115450.0,115420.0,0.00245984]
[1760129739103,0.18190466,115450.0,115350.0,0.28218329]
[1760129739376,0.32874728,115390.0,115370.0,0.19452216]
[1760129739614,0.32874728,115390.0,115380.0,0.17334026]
[1760129739851,6e-05,115390.0,115380.0,0.18200727]
[1760129740587,0.00056362,115390.0,115380.0,0.13900727]
[1760129740822,0.06619503,115450.0,115440.0,0.17325017]
[1760129741062,0.06619503,115450.0,115400.0,0.17331009]
[1760129741299,0.26619501,115450.0,115400.0,0.71082062]
[1760129741528,0.22499997,115440.0,115400.0,0.00015062]
[1760129741762,0.19999998,115430.0,115400.0,0.00015062]
[1760129742003,0.19999998,115420.0,115410.0,0.02119]
[1760129742246,0.19999998,115450.0,115410.0,0.02119]
[1760129742486,0.41783794,115450.0,115400.0,0.00015062]
[1760129742726,0.24071091,115450.0,115400.0,0.20331631]
[1760129742962,0.19999998,115440.0,115400.0,0.00015062]
[1760129743204,0.19999998,115430.0,115400.0,0.00015062]
[1760129743443,0.402127,115420.0,115400.0,0.00015062]
[1760129743678,0.02499999,115410.0,115400.0,0.00015062]
[1760129744135,0.22499997,115410.0,115400.0,0.00015062]
[1760129744373,0.80042217,115410.0,115400.0,0.00015062]
[1760129744612,0.68874787,115410.0,115400.0,0.00015062]
[1760129744843,0.64290487,115410.0,115400.0,0.00015062]
[1760129745069,0.9099299,115410.0,115400.0,0.00015062]
[1760129745299,0.73663454,115410.0,115400.0,0.00015062]
[1760129745529,0.21577755,115410.0,115400.0,0.00015062]
[1760129745790,0.22499997,115420.0,115400.0,0.00015062]
[1760129746025,0.01579845,115420.0,115400.0,0.00015062]
[1760129746256,0.19999998,115420.0,115400.0,0.00015062]
[1760129746712,0.22499997,115410.0,115400.0,0.00015062]
[1760129746976,0.02499999,115410.0,115400.0,0.00015062]
[1760129747235,0.02499999,115450.0,115400.0,0.19945737]
[1760129747463,0.08312206,115440.0,115400.0,0.00015062]
[1760129747680,0.28312204,115430.0,115400.0,0.17345861]
[1760129747909,0.08312206,115430.0,115420.0,0.17328019]
[1760129748133,0.08312206,115430.0,115420.0,0.53194778]
[1760129748355,0.19999998,115470.0,115430.0,0.1732646]
[1760129748600,0.01583098,115470.0,115430.0,0.00866325]
[1760129748837,0.06619503,115470.0,115430.0,0.02119]
[1760129749085,0.19999998,115460.0,115410.0,0.02985476]
[1760129749310,0.19999998,115430.0,115400.0,0.00015062]
[1760129749542,0.02499999,115440.0,115400.0,0.00015062]
[1760129749789,0.22499997,115430.0,115400.0,0.00015062]
[1760129750024,0.39828026,115420.0,115400.0,0.00015062]
[1760129750261,0.22499997,115410.0,115400.0,0.00015062]
[1760129750489,0.02499999,115410.0,115400.0,0.00015062]
[1760129750716,0.22499997,115410.0,115400.0,0.00015062]
[1760129751200,0.58022723,115410.0,115400.0,0.00015062]
[1760129751432,0.39833607,115390.0,115340.0,0.02119]
[1760129751661,0.28312204,115380.0,115340.0,0.20325885]
[1760129751886,0.28312204,115380.0,115340.0,0.22459885]
[1760129752134,0.20015096,115390.0,115350.0,0.02134]
[1760129752405,0.19999998,115380.0,115340.0,0.03944348]
[1760129752630,0.19999998,115380.0,115340.0,0.22459967]
[1760129752857,0.19999998,115380.0,115340.0,0.02119]
[1760129753077,0.19999998,115380.0,115340.0,0.22459999]
[1760129753301,0.19999998,115380.0,115340.0,0.24285347]
[1760129753526,0.20015096,115390.0,115350.0,0.20339415]
[1760129753774,0.19999998,115380.0,115350.0,0.01825348]
[1760129754007,0.02499999,115370.0,115320.0,0.02134]
[1760129754243,0.22499997,115360.0,115310.0,0.03001227]
[1760129754473,0.00866926,115350.0,115310.0,0.02134]
[1760129754754,0.18212913,115310.0,115280.0,0.01233436]
[1760129754978,0.391243,115290.0,115280.0,0.0002]
[1760129755207,0.59124298,115290.0,115280.0,0.0002]
[1760129755438,0.391243,115300.0,115280.0,0.0002]
[1760129755660,0.00980538,115300.0,115280.0,0.17367558]
[1760129755884,0.00015078,115300.0,115290.0,0.01734755]
[1760129756119,0.19999998,115290.0,115280.0,0.0002]
[1760129756365,0.73169356,115290.0,115280.0,0.0002]
[1760129756632,0.73169356,115290.0,115200.0,0.18228917]
[1760129756633,0.44709798,115260.0,115200.0,0.18228917]
[1760129756863,0.44709798,115250.0,115190.0,0.20361714]
[1760129757085,0.44709798,115240.0,115190.0,0.08593397]
[1760129757310,0.19999998,115240.0,115200.0,0.20382946]
[1760129757533,0.09881,115240.0,115190.0,0.25955666]
[1760129757758,0.14684,115230.0,115190.0,0.06459397]
[1760129757986,0.247098,115230.0,115190.0,0.02204362]
[1760129758209,0.04532031,115200.0,115190.0,0.00050362]
[1760129758434,0.05622809,115200.0,115190.0,0.00050362]
[1760129758940,0.6750392,115200.0,115190.0,0.00050362]
[1760129759171,1.22962548,115200.0,115190.0,0.00050362]
[1760129759399,0.38626579,115200.0,115190.0,0.00050362]
[1760129759624,0.07127396,115200.0,115190.0,0.00050362]
[1760129759850,0.07127396,115200.0,115140.0,0.00052]
[1760129759851,0.43431838,115150.0,115140.0,0.01737015]
[1760129760077,5.738e-05,115140.0,115110.0,0.0036046]
[1760129760325,0.01737025,115140.0,115110.0,0.0036046]
[1760129760545,0.03524376,115140.0,115110.0,0.0036046]
[1760129760762,0.18772493,115150.0,115120.0,0.00868658]
[1760129760993,0.20560089,115150.0,115130.0,0.68447431]
[1760129761288,0.20560089,115150.0,115140.0,0.34]
[1760129761501,4.226e-05,115140.0,115120.0,0.01947166]
[1760129761723,0.18772493,115150.0,115110.0,0.0036046]
[1760129761724,0.247098,115130.0,115110.0,0.0036046]
[1760129761950,0.34709799,115140.0,115110.0,0.0036046]
[1760129762176,0.17821346,115150.0,115120.0,0.51944436]
[1760129762401,0.01737025,115140.0,115110.0,0.01223139]
[1760129762640,0.247098,115130.0,115110.0,0.00354405]
[1760129762884,0.44709798,115140.0,115110.0,0.00354405]
[1760129763113,0.44709798,115120.0,115110.0,0.00354405]
[1760129763339,0.19999998,115120.0,115110.0,1e-08]
[1760129763810,0.19999998,115140.0,115110.0,1e-08]
[1760129764044,0.31737025,115130.0,115110.0,0.34000001]
[1760129764298,0.3,115130.0,115110.0,0.34000001]
[1760129764527,0.247098,115120.0,115110.0,1e-08]
[1760129764751,0.19999998,115130.0,115110.0,1e-08]
[1760129764988,0.19999998,115140.0,115130.0,0.17371666]
[1760129765205,0.17821346,115150.0,115140.0,0.17370158]
[1760129765672,0.17821346,115150.0,115130.0,0.17371342]
[1760129765909,0.01737025,115140.0,115130.0,0.17371342]
[1760129766145,0.17821346,115150.0,115130.0,0.23991169]
[1760129766429,0.6,115180.0,115170.0,0.17365633]
[1760129766656,0.6,115180.0,115170.0,0.17380711]
[1760129766889,0.08217106,115200.0,115190.0,0.17362618]
[1760129767148,0.08217106,115200.0,115170.0,0.00883359]
[1760129767388,0.341778,115190.0,115060.0,0.1737794]
[1760129767629,0.19999998,115110.0,115070.0,0.42918071]
[1760129767862,0.78709798,115100.0,115090.0,0.02499999]
[1760129768110,0.09999999,115080.0,115060.0,0.58990018]
[1760129768349,0.09999999,115080.0,115060.0,0.17382094]
[1760129768350,0.19999998,115080.0,115060.0,0.17382094]
[1760129768596,0.53999998,115060.0,115050.0,0.0002]
[1760129768828,0.78724907,115060.0,115050.0,0.0001349]
[1760129769068,0.58724909,115060.0,115050.0,0.0001349]
[1760129769304,0.58724909,115060.0,115010.0,9.883e-05]
[1760129769305,0.53999998,115020.0,115010.0,9.883e-05]
[1760129769537,1.38513895,115020.0,115010.0,9.883e-05]
[1760129769775,2.3732999,115020.0,115010.0,9.883e-05]
[1760129770011,0.82697807,115010.0,115000.0,16.68691505]
[1760129770302,0.82697807,115010.0,115000.0,13.34180585]
[1760129770303,1.75984241,115010.0,115000.0,13.34180585]
[1760129770534,2.27075117,115010.0,115000.0,10.23716295]
[1760129770766,2.76121889,115010.0,115000.0,7.53278902]
[1760129771006,2.85303588,115010.0,115000.0,6.88420151]
[1760129771248,4.44286471,115010.0,115000.0,5.29656672]
[1760129771485,4.44286471,115010.0,115000.0,1.34152487]
[1760129771712,0.8226881,114950.0,114920.0,0.001]
[1760129771960,2.40441078,114950.0,114920.0,0.001]
[1760129772195,1.09901895,114930.0,114900.0,0.72012641]
[1760129772417,1.09901895,114930.0,114890.0,0.00011]
[1760129772634,1.09901895,114930.0,114830.0,0.0023]
[1760129772869,1.09901895,114930.0,114820.0,0.0979745]
[1760129772870,1.09901895,114930.0,114780.0,0.11417503]
[1760129773112,1.09901895,114930.0,114780.0,0.06619503]
[1760129773350,0.34,114920.0,114700.0,0.03377]
[1760129773598,0.00903426,114860.0,114800.0,0.27853941]
[1760129773833,0.00903426,114860.0,114780.0,0.27853941]
[1760129773834,0.82568906,114640.0,114630.0,0.48027146]
[1760129774069,0.434482,114650.0,114640.0,0.001]
[1760129774308,0.02499999,114610.0,114600.0,0.04889038]
[1760129774539,0.02499999,114610.0,114580.0,0.00011]
[1760129774540,0.685352,114590.0,114580.0,0.00011]
[1760129774769,0.00015009,114590.0,114580.0,0.00011]
[1760129775002,0.3,114610.0,114580.0,0.51086778]
[1760129775235,0.385352,114570.0,114550.0,0.01100932]
[1760129775504,0.385352,114570.0,114510.0,0.26010361]
[1760129775505,0.00873057,114540.0,114510.0,0.01420068]
[1760129775770,0.34,114520.0,114500.0,3.28737218]
[1760129775997,0.17464343,114520.0,114500.0,0.87647218]
[1760129776245,0.17464343,114520.0,114470.0,1e-08]
[1760129776246,2.7401,114490.0,114470.0,1e-08]
[1760129776489,0.62499999,114430.0,114420.0,1e-08]
[1760129776741,0.79977933,114430.0,114420.0,1e-08]
[1760129776972,0.62499999,114370.0,114360.0,0.11446402]
[1760129777213,0.6,114390.0,114360.0,0.11446402]
[1760129777448,2.28875603,114370.0,114360.0,0.03086402]
[1760129777689,2.41604851,114370.0,114360.0,0.02436403]
[1760129777923,0.18359175,114390.0,114360.0,0.02436403]
[1760129778165,0.18359175,114390.0,114340.0,0.01125672]
[1760129778166,0.4999016,114350.0,114340.0,0.01125672]
[1760129778416,2.83942797,114330.0,114320.0,0.0049545]
[1760129778676,2.064755,114300.0,114270.0,0.00013]
[1760129778921,2.064755,114290.0,114270.0,0.00013]
[1760129779168,2.064755,114290.0,114240.0,1.01138042]
[1760129779169,2.26988582,114250.0,114240.0,0.50386816]
[1760129779410,2.26988582,114250.0,114240.0,0.45921583]
[1760129779411,2.66286519,114250.0,114240.0,0.45921583]
[1760129779644,2.66286519,114250.0,114190.0,0.09368]
[1760129779645,1.614755,114210.0,114190.0,0.09368]
[1760129779877,1.614755,114190.0,114130.0,0.57212598]
[1760129780108,1.89163721,114180.0,114150.0,0.08372]
[1760129780343,0.17496508,114150.0,114140.0,0.01150412]
[1760129780570,2.38819324,114140.0,114120.0,0.0034795]
[1760129780797,0.17529406,114100.0,114030.0,0.01162782]
[1760129781027,1.303232,114070.0,114010.0,0.16749999]
[1760129781260,0.17537401,114050.0,114010.0,0.49116]
[1760129781494,0.1754232,114010.0,114000.0,5.03563845]
[1760129781724,0.1754232,114010.0,114000.0,4.995188]
[1760129781725,1.47788239,114010.0,114000.0,4.995188]
[1760129781995,1.47763059,114010.0,114000.0,4.50032682]
[1760129782224,0.94729754,114010.0,114000.0,4.21908193]
[1760129782460,1.12195855,114010.0,114000.0,2.72744817]
[1760129782695,0.17548477,113970.0,113960.0,0.00509214]
[1760129782930,5.03999999,113870.0,113840.0,1.3282986]
[1760129783191,3.28204065,113850.0,113840.0,0.3570886]
[1760129783457,3.28204065,113850.0,113810.0,0.32364056]
[1760129783458,0.27492537,113840.0,113810.0,0.32364056]
[1760129783694,0.27492537,113840.0,113800.0,0.0001]
[1760129783695,0.14988141,113630.0,113590.0,0.43921497]
[1760129783931,2.13618287,113670.0,113620.0,0.00050146]
[1760129784170,2.13618287,113670.0,113580.0,0.35902552]
[1760129784171,1.96873205,113610.0,113580.0,0.35902552]
[1760129784394,0.19999998,113590.0,113580.0,0.28283552]
[1760129784628,0.51956137,113590.0,113500.0,3.0]
[1760129784885,0.51956137,113590.0,113390.0,0.00560387]
[1760129784886,0.50575778,113510.0,113460.0,0.3]
[1760129785129,1.00608191,113520.0,113300.0,0.40712465]
[1760129785366,0.09999999,113440.0,113400.0,0.00017681]
[1760129785597,1.34057385,113400.0,113370.0,0.28139289]
[1760129785822,1.34057385,113400.0,113240.0,0.00597743]
[1760129785823,0.20007912,113360.0,113220.0,0.51075778]
[1760129786071,0.00882456,113320.0,113200.0,0.18143956]
[1760129786294,0.04445,113210.0,113190.0,0.0088347]
[1760129786537,4.777854,113190.0,113150.0,0.26005457]
[1760129786758,0.33654,113350.0,113150.0,0.26005457]
[1760129786759,0.84705285,113270.0,113260.0,0.00882924]
[1760129786995,0.05768468,113370.0,113250.0,0.08412]
[1760129786996,0.3,113280.0,113250.0,0.08412]
[1760129787233,0.05768468,113370.0,113200.0,0.26500929]
[1760129787234,0.3,113290.0,113240.0,0.08412]
[1760129787462,0.29975058,113290.0,113240.0,0.08372]
[1760129787686,3.39039899,113360.0,113310.0,0.09999999]
[1760129787910,0.01843887,113340.0,113280.0,1.02151556]
[1760129788142,0.8499864,113460.0,113250.0,0.57728]
[1760129788143,0.8499864,113510.0,113340.0,0.05811052]
[1760129788370,0.8499864,113510.0,113350.0,0.34]
[1760129788371,0.04454103,113500.0,113350.0,0.34]
[1760129788617,0.04454103,113500.0,113320.0,0.17643073]
[1760129788618,0.19974948,113450.0,113320.0,0.17643073]
[1760129788845,0.6,113390.0,113330.0,0.25098378]
[1760129789090,0.3,113390.0,113300.0,0.11443428]
[1760129789333,0.3,113470.0,113380.0,0.08428]
[1760129789601,8e-05,113510.0,113300.0,0.15900617]
[1760129789839,3.330045,113360.0,113240.0,0.3864]
[1760129790093,3.565479,113350.0,113270.0,0.00882846]
[1760129790315,3.22083867,113460.0,113430.0,0.01617927]
[1760129790544,2.86141672,113510.0,113390.0,0.00881911]
[1760129790545,3.24557799,113450.0,113390.0,0.36853911]
[1760129790778,0.89973541,113400.0,113390.0,0.34]
[1760129791019,0.04441058,113510.0,113390.0,0.34]
[1760129791020,8e-05,113510.0,113460.0,0.17627357]
[1760129791244,0.3,113510.0,113500.0,1.34058843]
[1760129791469,0.84705285,113690.0,113500.0,2.05129833]
[1760129791470,0.00859928,113630.0,113500.0,2.05129833]
[1760129791693,3.220578,113600.0,113520.0,0.18498942]
[1760129791923,8e-05,113660.0,113630.0,0.00880049]
[1760129792168,0.00446651,113650.0,113600.0,1.02151556]
[1760129792400,0.001,113710.0,113700.0,0.17590149]
[1760129792639,0.025,113750.0,113630.0,0.29162415]
[1760129792864,6e-05,113710.0,113700.0,0.17590149]
[1760129793092,0.3,113710.0,113680.0,0.00879662]
[1760129793332,3.221069,113800.0,113770.0,0.17578858]
[1760129793570,0.00125549,113800.0,113790.0,0.17576236]
[1760129793794,0.3,113770.0,113750.0,0.1845715]
[1760129794018,0.27739998,113810.0,113760.0,0.00879043]
[1760129794247,0.7727245,113810.0,113800.0,0.17574692]
[1760129794478,0.07668707,113810.0,113800.0,0.17600372]
[1760129794707,0.19974484,113840.0,113790.0,0.00878811]
[1760129794708,0.02495842,113840.0,113790.0,0.00878811]
[1760129794951,0.3,113870.0,113850.0,0.00878348]
[1760129795173,0.09974485,113930.0,113850.0,0.00878348]
[1760129795174,0.001,113920.0,113910.0,0.18422483]
[1760129795400,0.00074734,113870.0,113860.0,0.18437595]
[1760129795626,0.001,113860.0,113850.0,0.2094408]
[1760129795851,0.2117675,113990.0,113980.0,0.02499999]
[1760129796076,0.00034932,113930.0,113880.0,0.00878117]
[1760129796308,0.2997562,113890.0,113830.0,0.79177533]
[1760129796529,0.01975725,113980.0,113950.0,0.18429134]
[1760129796530,0.01715338,113980.0,113950.0,0.18429134]
[1760129796749,1e-08,113990.0,113980.0,0.17546938]
[1760129796973,0.0015,114020.0,113990.0,0.52422667]
[1760129797201,0.00125188,114020.0,114010.0,0.13978167]
[1760129797422,0.00125188,114020.0,113990.0,0.18422667]
[1760129797423,0.00073448,114020.0,113990.0,0.17545312]
[1760129797656,0.00073448,114020.0,113910.0,0.00877886]
[1760129797657,0.01234533,114090.0,113890.0,0.04379385]
[1760129797873,0.01183309,114090.0,114080.0,0.17531556]
[1760129798102,0.01158309,114090.0,114080.0,0.002]
[1760129798324,0.01106351,114090.0,114080.0,0.58787163]
[1760129798581,0.00022037,114130.0,114100.0,0.52403985]
[1760129798824,0.3,114210.0,114140.0,0.17521548]
[1760129799051,0.001,114180.0,114160.0,0.17519271]
[1760129799276,0.01272335,114200.0,114190.0,0.004]
[1760129799277,0.00845881,114200.0,114190.0,0.004]
[1760129799506,3.22675844,114200.0,114190.0,0.004]
[1760129799737,0.00640088,114200.0,114190.0,0.004]
[1760129799968,3.219315,114190.0,114140.0,0.00046099]
[1760129800259,0.00588934,114200.0,114140.0,0.00046099]
[1760129800260,0.61613547,114150.0,114140.0,5.794e-05]
[1760129800502,3.83494495,114150.0,114140.0,5.794e-05]
[1760129800730,0.01585382,114140.0,114120.0,0.07055607]
[1760129800956,3.185955,114170.0,114140.0,0.18398247]
[1760129801208,3.185955,114150.0,114130.0,0.00876193]
[1760129801448,3.16976334,114150.0,114110.0,0.18403107]
[1760129801674,0.29298951,114190.0,114150.0,0.17520716]
[1760129801906,0.46244721,114150.0,114130.0,0.34876193]
[1760129802140,0.00538787,114200.0,114160.0,0.00875963]
[1760129802384,0.31044,114240.0,114180.0,0.3487581]
[1760129802670,0.07690101,114250.0,114190.0,0.00875733]
[1760129802888,0.02066732,114240.0,114230.0,0.17508375]
[1760129803124,0.001,114260.0,114250.0,0.34]
[1760129803351,0.32149842,114300.0,114290.0,0.51499343]
[1760129803352,0.32224293,114300.0,114290.0,0.51499343]
[1760129803592,0.32224293,114300.0,114260.0,0.02499999]
[1760129803593,0.77516428,114300.0,114260.0,0.02499999]
[1760129803835,0.76199614,114300.0,114240.0,0.1750547]
[1760129804069,3.13080651,114290.0,114220.0,0.07055607]
[1760129804307,0.49432,114280.0,114230.0,0.00875426]
[1760129804526,0.001,114330.0,114270.0,0.0087512]
[1760129804757,0.49481154,114350.0,114320.0,0.00874737]
[1760129805019,0.02040186,114360.0,114350.0,0.1749007]
[1760129805249,0.02040186,114360.0,114350.0,0.79103617]
[1760129805250,0.01988572,114360.0,114350.0,0.79103617]
[1760129805472,0.03409727,114360.0,114340.0,0.18366275]
[1760129805702,0.03409727,114360.0,114320.0,0.02499999]
[1760129805703,0.03307432,114360.0,114320.0,0.02499999]
[1760129805940,2.62582402,114340.0,114320.0,0.00015009]
[1760129806208,0.34,114310.0,114220.0,0.61613547]
[1760129806404,0.34,114310.0,114210.0,0.02499999]
[1760129806405,0.01489509,114310.0,114250.0,0.00875273]
[1760129806659,0.01489509,114310.0,114280.0,0.18375896]
[1760129806660,0.01387529,114310.0,114280.0,0.18375896]
[1760129806896,0.01258783,114310.0,114260.0,0.00015]
[1760129807134,0.01232505,114310.0,114280.0,0.00890043]
[1760129807365,0.01165879,114310.0,114290.0,0.17498877]
[1760129807587,0.00849234,114290.0,114220.0,0.02499999]
[1760129807822,0.01755374,114280.0,114200.0,0.02499999]
[1760129808050,2.53305336,114250.0,114160.0,0.02499999]
[1760129808283,1.28482809,114240.0,114150.0,0.09555606]
[1760129808502,0.49363769,114240.0,114180.0,0.17515726]
[1760129808760,0.49363769,114240.0,114160.0,0.00875963]
[1760129808761,2.524301,114230.0,114150.0,0.07055607]
[1760129808985,0.02449195,114240.0,114160.0,0.18394989]
[1760129809217,3.13994047,114210.0,114120.0,0.07055607]
[1760129809450,0.4938,114210.0,114150.0,0.07055607]
[1760129809669,0.49303915,114210.0,114170.0,0.07055607]
[1760129809900,0.00015029,114240.0,114170.0,0.07055607]
[1760129810148,0.11372952,114250.0,114190.0,0.07055607]
[1760129810394,0.01755374,114240.0,114190.0,0.00050177]
[1760129810629,0.01755374,114240.0,114230.0,0.34]
[1760129810953,0.01755374,114240.0,114230.0,0.52062735]
[1760129811158,0.85134842,114300.0,114250.0,0.17504345]
[1760129811369,0.85134842,114300.0,114280.0,0.58458256]
[1760129811598,0.48671064,114300.0,114270.0,0.0087512]
[1760129811808,0.47700932,114300.0,114260.0,0.32699895]
[1760129812058,0.51700932,114300.0,114270.0,0.18376612]
[1760129812258,0.51700932,114300.0,114230.0,0.18382468]
[1760129812259,0.49368,114290.0,114230.0,0.18382468]
[1760129812473,0.49368,114280.0,114230.0,0.00875426]
[1760129812686,2.523805,114270.0,114190.0,0.61613547]
[1760129812887,2.523805,114220.0,114200.0,0.08750055]
[1760129813101,0.68355687,114210.0,114200.0,0.08750055]
[1760129813314,0.18991687,114210.0,114200.0,0.26263189]
[1760129813515,0.20937486,114210.0,114200.0,0.06645507]
[1760129813735,0.18991687,114210.0,114200.0,0.24158641]
[1760129813954,0.30888,114250.0,114220.0,0.00875503]
[1760129814183,0.30888,114250.0,114240.0,0.17507002]
[1760129814406,0.02497321,114250.0,114240.0,1.08820549]
[1760129814629,0.35063267,114280.0,114240.0,0.13207002]
[1760129814833,0.15895616,114280.0,114270.0,0.17502406]
[1760129815054,1e-08,114300.0,114290.0,0.13115302]
[1760129815268,0.72057526,114380.0,114340.0,0.0301519]
[1760129815506,0.72057526,114380.0,114310.0,0.34874814]
[1760129815507,0.48460578,114380.0,114310.0,0.34874814]
[1760129815727,0.48460578,114380.0,114370.0,0.17487103]
[1760129815941,0.00774761,114380.0,114360.0,0.17487771]
[1760129816160,0.00774761,114380.0,114370.0,0.7910065]
[1760129816430,0.00015132,114380.0,114350.0,0.22557681]
[1760129816638,1e-08,114380.0,114370.0,0.39858916]
[1760129816850,7e-05,114430.0,114400.0,0.08080515]
[1760129817058,0.00057385,114430.0,114420.0,0.79093008]
[1760129817265,0.9331494,114490.0,114460.0,0.17473353]
[1760129817477,0.9331494,114490.0,114460.0,0.61613547]
[1760129817478,0.05163757,114470.0,114460.0,0.61613547]
[1760129817714,0.14912544,114490.0,114480.0,0.07939851]
[1760129817926,0.01434687,114490.0,114480.0,0.28494049]
[1760129818143,0.24628387,114510.0,114490.0,0.38022972]
[1760129818144,4.95846251,114500.0,114490.0,0.38022972]
[1760129818381,4.8475075,114500.0,114490.0,0.1752381]